bitfinex-derivatives/quotes_BNBF0:USTF0_20250220
["timestamp","ask_amount","ask_price","bid_price","bid_amount"]
[1740048836227,1.15103795,650.2,647.61,1.60933538]
[1740048839024,3.2722849,650.64,647.61,1.60933538]
[1740048839025,1.15103795,650.29,647.61,1.60933538]
[1740048841030,1.15103795,650.33,647.61,1.60933538]
[1740048841730,0.30759766,650.2,647.61,1.60933538]
[1740048846437,1.15103795,650.06,647.61,1.60933538]
[1740048846835,0.30772071,649.94,647.61,1.60933538]
[1740048851635,1.15103795,649.81,647.72,1.14653744]
[1740048851833,0.30782964,649.71,647.72,1.14653744]
[1740048855033,0.30782964,649.71,647.73,1.14653744]
[1740048856837,0.30782964,649.71,647.65,1.60849235]
[1740048856838,0.30782964,649.71,647.71,1.14653744]
[1740048859043,0.30782964,649.71,647.67,1.14653744]
[1740048861941,0.30782964,649.71,647.8,1.14653744]
[1740048864949,0.30782964,649.71,647.71,1.60820121]
[1740048864950,0.30782964,649.71,647.87,1.14653744]
[1740048866451,0.30782964,649.71,647.86,1.14653744]
[1740048868849,0.30782964,649.71,648.01,1.14653744]
[1740048872150,0.30782964,649.71,647.96,1.14653744]
[1740048875161,0.30782964,649.71,647.98,1.14653744]
[1740048877265,0.30782964,649.71,647.82,1.14653744]
[1740048879671,0.30782964,649.71,647.86,1.14653744]
[1740048881472,0.30782964,649.71,647.85,1.14653744]
[1740048884674,0.30782964,649.71,647.95,1.14653744]
[1740048887271,0.30782964,649.71,647.92,1.14653744]
[1740048890376,0.30782964,649.71,647.94,1.14653744]
[1740048892273,0.30782964,649.71,648.04,1.14653744]
[1740048893684,1.15103795,649.98,648.04,1.14653744]
[1740048894082,3.28482364,649.97,648.04,1.14653744]
[1740048894382,3.28482364,649.97,647.87,1.60784827]
[1740048894383,1.15103795,649.91,648.09,1.14653744]
[1740048897087,1.15103795,650.08,648.14,1.14653744]
[1740048900885,1.15103795,650.27,648.04,1.14653744]
[1740048901889,3.27907966,650.26,648.04,1.14653744]
[1740048902090,3.27907966,650.25,648.04,1.14653744]
[1740048902290,3.27907966,650.24,648.04,1.14653744]
[1740048902491,3.27907966,650.23,648.04,1.14653744]
[1740048902691,3.27907966,650.22,648.04,1.14653744]
[1740048902893,3.27907966,650.21,648.04,1.14653744]
[1740048903088,5.71673938,650.2,648.04,1.14653744]
[1740048903292,1.15103795,650.06,648.24,1.14653744]
[1740048903494,3.27907966,650.05,648.24,1.14653744]
[1740048903792,3.27907966,650.04,648.24,1.14653744]
[1740048904092,3.27907966,650.03,648.24,1.14653744]
[1740048904292,3.27907966,650.02,648.24,1.14653744]
[1740048904486,2.43765972,650.03,648.24,1.14653744]
[1740048905087,2.43765972,650.03,648.22,1.14653744]
[1740048905290,1.15103795,650.08,648.22,1.14653744]
[1740048905993,0.3076639,650.06,648.22,1.14653744]
[1740048907288,0.3076639,650.06,648.17,1.14653744]
[1740048910094,0.3076639,650.06,648.1,1.14653744]
[1740048915093,0.3076639,650.06,648.09,1.14653744]
[1740048917700,0.3076639,650.06,648.14,1.14653744]
[1740048919798,1.15103795,650.09,648.14,1.14653744]
[1740048920803,1.15103795,650.16,648.09,1.60761306]
[1740048923403,1.15103795,650.16,648.17,1.14653744]
[1740048923702,1.15103795,650.05,648.17,1.14653744]
[1740048926204,1.15103795,649.98,648.24,1.14653744]
[1740048929309,1.15103795,650.05,648.19,1.14653744]
[1740048931313,0.3076781,650.03,648.19,1.14653744]
[1740048932813,0.3076781,650.03,648.15,1.60761925]
[1740048933720,1.15103795,650.21,648.15,1.60761925]
[1740048935218,1.15103795,650.24,648.15,1.60761925]
[1740048937122,1.15103795,650.21,648.15,1.60761925]
[1740048939323,1.15103795,650.22,648.25,1.14653744]
[1740048942221,10.80480588,655.73,648.25,1.14653744]
[1740048942222,1.15103795,650.33,648.25,1.14653744]
[1740048942425,1.15103795,650.33,648.24,1.14653744]
[1740048945928,1.15103795,650.66,648.19,1.6072542]
[1740048949726,1.15103795,650.85,648.19,1.6072542]
[1740048952334,1.15103795,650.88,648.19,1.6072542]
[1740048952935,0.30733768,650.75,648.19,1.6072542]
[1740048957038,1.15103795,650.98,648.19,1.6072542]
[1740048959034,1.15103795,650.97,648.19,1.6072542]
[1740048961438,1.15103795,650.97,647.92,1.14653744]
[1740048962040,1.15103795,651.04,647.93,1.14653744]
[1740048963536,0.30727158,650.89,647.93,1.14653744]
[1740048964139,0.30727158,650.89,647.45,1.37584493]
[1740048964140,0.30727158,650.89,647.91,1.14653744]
[1740048967046,0.30727158,650.89,646.91,2.34084728]
[1740048967047,0.30727158,650.89,647.93,1.14653744]
[1740048969742,1.15103795,650.78,648.11,1.14653744]
[1740048969939,0.30738492,650.65,648.11,1.14653744]
[1740048971741,0.30738492,650.65,648.1,1.14653744]
[1740048974052,0.30738492,650.65,648.18,1.14653744]
[1740048977053,1.15103795,650.61,648.32,1.14653744]
[1740048977254,0.3074558,650.5,648.32,1.14653744]
[1740048980853,0.3074558,650.5,648.38,1.14653744]
[1740048983354,1.15103795,650.49,648.5,1.14653744]
[1740048983649,0.30746998,650.47,648.5,1.14653744]
[1740048985556,3.27506744,650.46,648.5,1.14653744]
[1740048985753,1.15103795,650.49,648.5,1.14653744]
[1740048985754,0.30748416,650.44,648.5,1.14653744]
[1740048985954,3.27506744,650.43,648.5,1.14653744]
[1740048986151,0.30749834,650.41,648.5,1.14653744]
[1740048986850,0.30749834,650.41,648.68,1.14653744]
[1740048986851,1.15103795,650.37,648.68,1.14653744]
[1740048987048,0.30752671,650.35,648.68,1.14653744]
[1740048988650,1.15103795,650.37,648.68,1.14653744]
[1740048989959,1.15103795,650.33,648.74,1.14653744]
[1740048991557,1.15103795,650.45,648.63,1.14653744]
[1740048994262,2.43341736,650.63,648.41,1.60656785]
[1740048994263,1.15103795,650.5,648.59,1.14653744]
[1740048996662,1.15103795,650.51,648.58,1.14653744]
[1740048999964,1.15103795,650.62,648.58,1.14653744]
[1740049000164,1.15103795,650.62,648.55,1.14653744]
[1740049003168,1.15103795,650.6,648.57,1.14653744]
[1740049006268,1.15103795,650.62,648.53,1.14653744]
[1740049009275,1.15103795,650.54,648.59,1.14653744]
[1740049011277,1.15103795,650.72,648.47,1.60647514]
[1740049014080,1.15103795,650.75,648.47,1.60647514]
[1740049016881,1.15103795,650.82,648.47,1.60647514]
[1740049019078,1.15103795,650.8,648.47,1.60647514]
[1740049021184,1.15103795,650.66,648.54,1.14653744]
[1740049024185,1.15103795,650.73,648.56,1.14653744]
[1740049026877,1.15103795,650.63,648.62,1.14653744]
[1740049029485,1.15103795,650.62,648.6,1.14653744]
[1740049032879,1.15103795,650.7,648.54,1.60644424]
[1740049035689,1.15103795,650.59,648.54,1.60644424]
[1740049035983,1.15103795,650.59,648.63,1.14653744]
[1740049038290,3.28863762,650.96,648.55,1.14653744]
[1740049038291,1.15103795,650.69,648.55,1.14653744]
[1740049040591,1.15103795,650.65,648.62,1.14653744]
[1740049045893,1.15103795,650.71,648.59,1.14653744]
[1740049047991,1.15103795,650.72,648.65,1.14653744]
[1740049049189,3.29008029,650.71,648.65,1.14653744]
[1740049049497,5.73329844,650.7,648.65,1.14653744]
[1740049049796,3.29008029,650.69,648.65,1.14653744]
[1740049049995,3.29008029,650.68,648.65,1.14653744]
[1740049050197,3.29008029,650.67,648.65,1.14653744]
[1740049050492,1.15103795,650.62,648.73,1.14653744]
[1740049050695,3.29008029,650.61,648.73,1.14653744]
[1740049050995,3.29008029,650.6,648.73,1.14653744]
[1740049051193,3.29008029,650.59,648.73,1.14653744]
[1740049051395,5.73329844,650.58,648.73,1.14653744]
[1740049051598,3.29008029,650.57,648.73,1.14653744]
[1740049051798,2.44321815,650.58,648.73,1.14653744]
[1740049052092,3.28910847,650.57,648.73,1.14653744]
[1740049052299,2.44321815,650.58,648.73,1.14653744]
[1740049052495,2.44321815,650.61,648.73,1.14653744]
[1740049052699,3.28860444,650.6,648.73,1.14653744]
[1740049052898,1.15103795,650.52,648.82,1.14653744]
[1740049055894,3.28404186,650.83,648.71,1.14653744]
[1740049055895,1.15103795,650.66,649.03,1.14653744]
[1740049058399,1.15103795,651.01,648.63,1.60609825]
[1740049060406,1.15103795,651.04,648.63,1.60609825]
[1740049062606,0.30725742,650.92,648.63,1.60609825]
[1740049063206,1.15103795,650.91,648.63,1.60609825]
[1740049063426,0.30731407,650.8,648.63,1.60609825]
[1740049066006,0.30731407,650.8,648.68,1.14653744]
[1740049067007,5.7221501,650.79,648.68,1.14653744]
[1740049067208,0.30736602,650.69,648.68,1.14653744]
[1740049069206,3.28316061,650.68,648.68,1.14653744]
[1740049069404,0.30738019,650.66,648.68,1.14653744]
[1740049069605,0.30738019,650.66,648.63,1.60609825]
[1740049069606,0.30738019,650.66,648.75,1.14653744]
[1740049071211,0.30738019,650.66,648.78,1.14653744]
[1740049073411,0.30738019,650.66,648.68,1.60605501]
[1740049083625,0.30738019,650.66,648.74,1.14653744]
[1740049086325,1.15103795,650.65,648.78,1.14653744]
[1740049086525,0.30739437,650.63,648.78,1.14653744]
[1740049088827,0.30739437,650.63,648.81,1.14653744]
[1740049091430,0.30739437,650.63,648.72,1.14653744]
[1740049094434,0.30739437,650.63,648.74,1.14653744]
[1740049097437,0.30739437,650.63,648.73,1.14653744]
[1740049098640,1.15103795,651.0,648.73,1.14653744]
[1740049099940,3.28183946,650.99,648.73,1.14653744]
[1740049100140,4.43287741,650.98,648.78,1.14653744]
[1740049100336,3.28183946,650.97,648.78,1.14653744]
[1740049100543,3.28183946,650.96,648.78,1.14653744]
[1740049100842,3.28183946,650.95,648.78,1.14653744]
[1740049101141,3.28183946,650.94,648.78,1.14653744]
[1740049101341,3.28183946,650.93,648.78,1.14653744]
[1740049101542,3.28183946,650.92,648.78,1.14653744]
[1740049101741,3.28183946,650.91,648.78,1.14653744]
[1740049102042,3.28183946,650.9,648.78,1.14653744]
[1740049102243,3.28183946,650.89,648.78,1.14653744]
[1740049102441,2.43787557,650.89,648.78,1.14653744]
[1740049103240,1.15103795,650.81,648.91,1.14653744]
[1740049105645,1.15103795,650.98,648.88,1.14653744]
[1740049108047,1.15103795,651.1,648.84,1.14653744]
[1740049110246,4.433875,651.1,648.84,1.14653744]
[1740049110442,3.28283705,651.09,648.84,1.14653744]
[1740049111042,3.58891352,651.1,648.84,1.14653744]
[1740049111747,3.58891352,651.1,648.87,1.14653744]
[1740049111748,1.15103795,651.07,648.87,1.14653744]
[1740049114049,1.15103795,651.15,648.84,1.14653744]
[1740049115849,1.14329806,651.15,648.84,1.14653744]
[1740049117349,2.43787557,651.37,648.79,1.14653744]
[1740049117548,5.72071262,651.37,648.79,1.14653744]
[1740049117752,3.28283705,651.36,648.79,1.14653744]
[1740049118145,2.43787557,651.37,648.79,1.14653744]
[1740049118451,1.38124554,651.5,648.79,1.14653744]
[1740049118651,0.28229456,651.49,648.79,1.14653744]
[1740049119149,1.38124554,651.5,648.79,1.14653744]
[1740049120144,3.56513217,651.49,648.79,1.14653744]
[1740049120344,3.56514572,651.48,648.79,1.14653744]
[1740049120548,3.56514572,651.47,648.81,1.14653744]
[1740049120745,3.56514572,651.46,648.81,1.14653744]
[1740049120950,3.56514572,651.45,648.81,1.14653744]
[1740049121252,3.56514217,651.44,648.81,1.14653744]
[1740049121452,3.56514217,651.43,648.81,1.14653744]
[1740049121753,3.56514217,651.42,648.81,1.14653744]
[1740049121952,3.56514217,651.41,648.81,1.14653744]
[1740049122153,3.56514217,651.4,648.81,1.14653744]
[1740049122453,3.56514217,651.39,648.81,1.14653744]
[1740049122752,3.56514217,651.38,648.81,1.14653744]
[1740049122953,3.56514334,651.37,648.81,1.14653744]
[1740049123148,1.38124554,651.16,649.0,1.14653744]
[1740049123353,0.30719134,651.06,649.0,1.14653744]
[1740049123553,3.28283705,651.05,649.0,1.14653744]
[1740049123756,3.28283705,651.04,649.0,1.14653744]
[1740049123955,0.30724797,650.94,649.0,1.14653744]
[1740049124154,3.28283705,650.93,649.0,1.14653744]
[1740049124356,0.30726214,650.91,649.0,1.14653744]
[1740049124555,0.30726214,650.91,648.89,1.14653744]
[1740049124556,0.30726214,650.91,649.11,1.14653744]
[1740049127556,0.30726214,650.91,649.02,1.14653744]
[1740049133954,0.30726214,650.91,648.75,1.14653744]
[1740049134160,0.30726214,650.91,648.92,1.60528329]
[1740049134357,0.30726214,650.91,648.75,1.14653744]
[1740049134664,0.30726214,650.91,648.92,1.60498098]
[1740049134855,0.30726214,650.91,648.75,1.14653744]
[1740049135261,0.30726214,650.91,648.92,1.60509202]
[1740049135563,0.30726214,650.91,648.75,1.14653744]
[1740049135759,0.30726214,650.91,648.76,1.6051969]
[1740049140769,3.27653211,651.53,648.76,1.6051969]
[1740049140966,3.55884306,651.52,648.76,1.6051969]
[1740049141261,1.38124554,651.33,648.88,1.14653744]
[1740049141466,3.55884306,651.32,648.88,1.14653744]
[1740049141666,3.55884306,651.31,648.88,1.14653744]
[1740049141865,2.43366311,651.32,648.88,1.14653744]
[1740049141866,3.55884306,651.3,648.88,1.14653744]
[1740049142066,3.27653211,651.29,648.88,1.14653744]
[1740049142366,3.27653211,651.28,648.88,1.14653744]
[1740049142568,3.27653211,651.27,648.88,1.14653744]
[1740049142867,5.71019522,651.26,648.88,1.14653744]
[1740049143167,3.27653211,651.25,648.88,1.14653744]
[1740049143369,1.38124554,651.0,649.12,1.14653744]
[1740049143571,3.27653211,650.99,649.12,1.14653744]
[1740049143768,3.27653211,650.98,649.12,1.14653744]
[1740049143964,3.27653211,650.97,649.12,1.14653744]
[1740049144162,3.27653211,650.96,649.12,1.14653744]
[1740049144367,3.27653211,650.95,649.12,1.14653744]
[1740049144564,3.27653211,650.97,649.12,1.14653744]
[1740049144869,3.27653211,650.96,649.12,1.14653744]
[1740049145069,4.65777765,650.97,649.13,1.14653744]
[1740049145369,3.27653211,650.96,649.13,1.14653744]
[1740049145561,3.27653211,650.95,649.13,1.14653744]
[1740049145766,3.27653211,650.94,649.13,1.14653744]
[1740049145970,3.27653211,650.93,649.13,1.14653744]
[1740049146168,3.27653211,650.92,649.13,1.14653744]
[1740049146369,3.27653211,650.91,649.13,1.14653744]
[1740049146569,3.27653211,650.9,649.13,1.14653744]
[1740049146769,3.27653211,650.89,649.13,1.14653744]
[1740049146969,3.27653211,650.88,649.13,1.14653744]
[1740049147165,3.27653211,650.87,649.13,1.14653744]
[1740049147371,3.27653211,650.86,649.13,1.14653744]
[1740049147568,3.27653211,650.87,649.13,1.14653744]
[1740049148071,3.27653211,650.87,649.17,1.14653744]
[1740049148271,3.27653211,650.86,649.17,1.14653744]
[1740049148472,2.43366311,650.88,649.17,1.14653744]
[1740049148872,1.38124554,650.93,649.17,1.14653744]
[1740049150871,1.38124554,651.13,648.99,1.14653744]
[1740049151974,4.66425685,651.13,648.99,1.14653744]
[1740049152172,3.28301131,651.12,648.99,1.14653744]
[1740049152570,1.38124554,651.13,648.99,1.14653744]
[1740049152769,2.43366311,651.12,648.99,1.14653744]
[1740049153277,1.38124554,651.13,648.99,1.14653744]
[1740049154378,1.38124554,651.13,648.92,1.14653744]
[1740049155373,4.66425685,651.13,648.92,1.14653744]
[1740049155572,3.28301131,651.12,648.92,1.14653744]
[1740049155779,1.38124554,651.13,648.92,1.14653744]
[1740049157675,1.38124554,651.22,648.92,1.14653744]
[1740049158479,3.28301131,651.21,648.92,1.14653744]
[1740049158680,3.28301131,651.2,648.92,1.14653744]
[1740049158979,3.28301131,651.19,648.92,1.14653744]
[1740049159182,3.28301131,651.18,648.92,1.14653744]
[1740049159382,3.28301131,651.21,648.92,1.14653744]
[1740049159583,5.71667442,651.21,648.92,1.14653744]
[1740049159781,3.28301131,651.2,648.92,1.14653744]
[1740049159978,1.38124554,651.16,649.0,1.14653744]
[1740049162086,1.38124554,651.16,648.95,1.60545609]
[1740049162087,1.38124554,651.18,648.95,1.60545609]
[1740049162480,3.28301131,651.17,648.95,1.60545609]
[1740049162684,1.38124554,651.18,648.95,1.60545609]
[1740049162685,3.28301131,651.16,648.95,1.60545609]
[1740049162881,3.28301131,651.15,648.95,1.60545609]
[1740049163086,3.28301131,651.14,648.95,1.60545609]
[1740049163287,3.28301131,651.13,648.95,1.60545609]
[1740049163489,3.28301131,651.12,648.95,1.60545609]
[1740049163688,3.28301131,651.11,648.95,1.60545609]
[1740049163987,3.28301131,651.1,648.95,1.60545609]
[1740049164181,3.28301131,651.09,648.95,1.60545609]
[1740049164385,3.28301131,651.08,648.95,1.60545609]
[1740049164587,3.28301131,651.07,648.95,1.60545609]
[1740049164790,1.38124554,651.04,648.95,1.60545609]
[1740049165088,3.28301131,651.03,648.95,1.60545609]
[1740049165284,3.28301131,651.02,648.95,1.60545609]
[1740049165482,2.43366311,651.03,648.95,1.60545609]
[1740049165483,3.28301131,651.01,648.95,1.60545609]
[1740049165688,3.28301131,651.02,648.95,1.60545609]
[1740049165890,3.28301131,651.01,648.95,1.60545609]
[1740049166090,3.28301131,651.0,648.95,1.60545609]
[1740049166292,3.28301131,650.99,648.95,1.60545609]
[1740049166485,3.28301131,650.98,648.95,1.60545609]
[1740049166686,3.28301131,650.97,648.95,1.60545609]
[1740049166890,3.28301131,650.96,648.95,1.60545609]
[1740049167091,3.28301131,650.95,648.95,1.60545609]
[1740049167293,3.28301131,650.94,648.95,1.60545609]
[1740049167490,3.28301131,650.93,648.95,1.60545609]
[1740049167787,3.28301131,650.92,648.95,1.60545609]
[1740049167993,3.28301131,650.91,648.95,1.60545609]
[1740049168290,3.28301131,650.9,648.95,1.60545609]
[1740049168490,3.28301131,650.89,648.95,1.60545609]
[1740049168692,3.28301131,650.88,648.95,1.60545609]
[1740049168886,5.71667442,650.87,648.95,1.60545609]
[1740049169090,3.28301131,650.86,648.95,1.60545609]
[1740049169286,3.28301131,650.85,648.95,1.60545609]
[1740049169490,3.28301131,650.86,648.95,1.60545609]
[1740049169686,2.43366311,650.87,648.95,1.60545609]
[1740049170288,1.38124554,650.93,648.97,1.14653744]
[1740049171492,0.30726214,650.91,648.97,1.14653744]
[1740049173191,0.30726214,650.91,648.95,1.60545609]
[1740049176895,1.14928048,650.85,648.95,1.60545609]
[1740049177195,0.3072999,650.83,648.95,1.60545609]
[1740049179493,1.14928048,650.79,648.95,1.60545609]
[1740049179693,0.30732824,650.77,648.95,1.60545609]
[1740049182496,3.2811813,650.76,648.95,1.60545609]
[1740049182805,0.30734241,650.74,648.95,1.60545609]
[1740049183097,3.2811813,650.73,648.95,1.60545609]
[1740049183294,0.30735657,650.71,648.95,1.60545609]
[1740049183495,3.2811813,650.7,648.95,1.60545609]
[1740049183696,0.30737075,650.68,648.95,1.60545609]
[1740049183901,3.2811813,650.67,648.95,1.60545609]
[1740049184200,0.30738492,650.65,648.95,1.60545609]
[1740049184596,1.14928048,650.61,648.95,1.60545609]
[1740049184796,0.30741327,650.59,648.95,1.60545609]
[1740049210120,1.14928048,650.57,648.95,1.60545609]
[1740049210320,0.30743217,650.55,648.95,1.60545609]
[1740049218621,0.30743217,650.55,649.02,1.14653744]
[1740049221022,0.30743217,650.55,648.98,1.60548695]
[1740049221023,0.30743217,650.55,649.03,1.14653744]
[1740049223528,0.30743217,650.55,649.0,1.14653744]
[1740049226233,0.30743217,650.55,648.98,1.60548695]
[1740049229936,3.28136181,650.54,648.98,1.60548695]
[1740049230135,0.30743217,650.55,648.98,1.60548695]
[1740049230136,0.30744635,650.52,648.98,1.60548695]
[1740049232639,0.30744635,650.52,649.01,1.14653744]
[1740049235541,0.30744635,650.52,648.98,1.60548695]
[1740049243853,0.30744635,650.52,649.0,1.14653744]
[1740049246656,0.30744635,650.52,649.04,1.14653744]
[1740049249457,0.30744635,650.52,649.07,1.14653744]
[1740049251758,0.30744635,650.52,649.0,1.60553633]
[1740049295703,0.30744635,650.52,649.01,1.14653744]
[1740049296303,1.14928048,650.79,649.01,1.14653744]
[1740049297199,2.43888475,650.92,649.0,1.60553633]
[1740049297200,1.14928048,650.8,649.0,1.60553633]
[1740049300009,1.14928048,650.97,649.0,1.60553633]
[1740049303109,1.14928048,650.98,649.0,1.60553633]
[1740049305010,1.14928048,650.99,649.0,1.60553633]
[1740049307112,1.14928048,651.05,649.0,1.60553633]
[1740049308009,3.28274832,651.04,649.0,1.60553633]
[1740049308209,3.28274832,651.03,649.0,1.60553633]
[1740049308406,5.72136377,651.02,649.0,1.60553633]
[1740049308606,3.28274832,651.01,649.0,1.60553633]
[1740049308811,3.28274832,651.0,649.0,1.60553633]
[1740049309111,3.28274832,650.99,649.0,1.60553633]
[1740049309311,3.28274832,650.98,649.0,1.60553633]
[1740049309507,3.28274832,651.01,649.0,1.60553633]
[1740049309711,3.28274832,651.0,649.0,1.60553633]
[1740049309909,3.28274832,650.99,649.0,1.60553633]
[1740049310108,1.14928048,650.85,649.0,1.60553633]
[1740049311712,3.28274832,650.84,649.0,1.60553633]
[1740049311916,1.14928048,650.85,649.0,1.60553633]
[1740049312117,2.43861545,650.84,649.0,1.60553633]
[1740049312317,3.28274832,650.83,649.0,1.60553633]
[1740049312715,5.72136377,650.84,649.0,1.60553633]
[1740049313219,1.14928048,650.8,649.0,1.60553633]
[1740049313415,3.28274832,650.79,649.0,1.60553633]
[1740049313612,5.72136377,650.78,649.0,1.60553633]
[1740049313918,3.28274832,650.77,649.0,1.60553633]
[1740049314113,3.28274832,650.76,649.0,1.60553633]
[1740049314318,2.43861545,650.78,649.0,1.60553633]
[1740049314520,3.28462448,650.77,649.0,1.60553633]
[1740049314721,2.43861545,650.78,649.0,1.60553633]
[1740049314917,3.28453833,650.77,649.0,1.60553633]
[1740049315122,2.43861545,650.78,649.0,1.60553633]
[1740049315424,3.28454163,650.77,649.0,1.60553633]
[1740049315724,1.14928048,650.67,649.04,1.14653744]
[1740049317918,1.14928048,650.71,649.0,2.75207377]
[1740049318124,3.2846213,650.7,649.0,2.75207377]
[1740049318319,3.2846213,650.69,649.0,2.75207377]
[1740049318623,2.43990349,650.69,649.0,2.75207377]
[1740049320425,1.14928048,650.71,649.0,2.75207377]
[1740049320925,1.14928048,650.72,649.0,1.60553633]
[1740049324324,1.14928048,650.68,649.0,1.60553633]
[1740049325324,3.28510836,650.67,649.0,1.60553633]
[1740049325529,5.72514413,650.66,649.0,1.60553633]
[1740049325729,3.28510836,650.65,649.0,1.60553633]
[1740049325930,3.28510836,650.64,649.0,1.60553633]
[1740049326132,3.28510836,650.63,649.0,1.60553633]
[1740049326323,3.28510836,650.62,649.0,1.60553633]
[1740049326525,3.28510836,650.61,649.0,1.60553633]
[1740049326730,3.28510836,650.6,649.0,1.60553633]
[1740049326932,3.28510836,650.59,649.0,1.60553633]
[1740049327332,1.14928048,650.51,649.0,1.60553633]
[1740049327627,3.28510836,650.5,649.0,1.60553633]
[1740049327831,1.14928048,650.51,649.0,1.60553633]
[1740049330336,2.44003577,650.65,649.0,1.60553633]
[1740049330337,1.14928048,650.54,649.0,1.60553633]
[1740049332535,1.14928048,650.67,649.0,1.60553633]
[1740049334639,1.14928048,650.76,649.0,1.60553633]
[1740049337345,1.14928048,650.78,649.0,1.60553633]
[1740049339539,2.43732114,650.83,649.0,1.60553633]
[1740049339742,1.14928048,650.84,649.0,1.60553633]
[1740049341945,1.14928048,650.87,649.0,1.60553633]
[1740049344447,1.14928048,650.84,649.0,1.60553633]
[1740049345944,3.28073652,650.97,649.0,1.60553633]
[1740049345945,1.14928048,650.82,649.0,1.60553633]
[1740049348945,4.430017,650.82,649.0,1.60553633]
[1740049349140,3.28073652,650.81,649.0,1.60553633]
[1740049349340,1.14928048,650.82,649.0,1.60553633]
[1740049349545,2.43732114,650.81,649.0,1.60553633]
[1740049351543,1.14928048,650.82,649.0,1.60553633]
[1740049351743,1.14928048,650.73,649.0,1.60553633]
[1740049355147,1.14928048,650.77,649.0,1.60553633]
[1740049357951,1.14928048,650.86,649.0,1.60553633]
[1740049360849,2.43732114,651.04,649.0,1.60553633]
[1740049360850,1.14928048,650.72,649.0,1.60553633]
[1740049362853,1.14928048,650.73,649.0,1.60553633]
[1740049365254,1.14928048,650.81,649.0,1.60553633]
[1740049369953,1.14928048,651.03,649.0,1.60553633]
[1740049372659,1.14928048,651.16,649.0,1.60553633]
[1740049375961,1.14928048,651.03,649.0,1.60553633]
[1740049377967,3.27996634,651.02,649.0,1.60553633]
[1740049378160,3.27996634,651.01,649.0,1.60553633]
[1740049378361,3.27996634,651.02,649.0,1.60553633]
[1740049378565,3.27996634,651.01,649.0,1.60553633]
[1740049378764,3.27996634,651.0,649.0,1.60553633]
[1740049378963,1.14928048,650.71,649.0,1.60553633]
[1740049381968,1.14928048,650.67,649.0,1.60553633]
[1740049385371,1.38124554,650.89,649.0,1.60553633]
[1740049385372,1.14928048,650.7,649.0,1.60553633]
[1740049388071,3.28595535,651.07,649.0,1.60553633]
[1740049388072,1.14928048,650.74,649.0,1.60553633]
[1740049391178,1.14928048,650.78,649.0,1.60553633]
[1740049393080,1.14928048,650.85,649.0,1.60553633]
[1740049395676,1.14928048,650.87,649.0,1.60553633]
[1740049397879,1.14928048,650.82,649.0,1.60553633]
[1740049398679,3.28619188,650.81,649.0,1.60553633]
[1740049398880,1.14928048,650.82,649.0,1.60553633]
[1740049398881,3.28619188,650.8,649.0,1.60553633]
[1740049399079,3.28619188,650.79,649.0,1.60553633]
[1740049399285,3.28619188,650.78,649.0,1.60553633]
[1740049399482,3.28619188,650.77,649.0,1.60553633]
[1740049399682,3.28619188,650.76,649.0,1.60553633]
[1740049399882,1.14928048,650.47,649.0,1.60553633]
[1740049402683,1.14928048,650.55,649.0,1.60553633]
[1740049405483,1.14928048,650.62,649.0,1.60553633]
[1740049408486,1.14928048,650.66,649.0,1.60553633]
[1740049411789,1.14928048,650.68,649.0,1.60553633]
[1740049413491,1.14928048,650.67,649.0,1.60553633]
[1740049415491,2.44103496,650.88,649.0,1.60553633]
[1740049415492,1.14928048,650.65,649.0,1.60553633]
[1740049418489,1.14928048,650.72,649.0,1.60553633]
[1740049421292,1.14928048,650.76,649.0,1.60553633]
[1740049423690,3.28928553,651.1,649.0,1.60553633]
[1740049423691,1.14928048,650.8,649.0,1.60553633]
[1740049426498,1.14928048,650.77,649.0,1.60553633]
[1740049430098,1.14928048,650.76,649.0,2.75207377]
[1740049432497,1.14928048,650.75,649.02,1.14653744]
[1740049435493,1.14928048,650.66,649.11,1.14653744]
[1740049438402,1.14928048,650.74,649.18,1.14653744]
[1740049441703,1.14928048,650.77,649.16,1.14653744]
[1740049441908,0.30733768,650.75,649.16,1.14653744]
[1740049444812,0.30733768,650.75,649.14,1.14653744]
[1740049447915,0.30733768,650.75,649.32,1.14653744]
[1740049450816,1.14928048,650.69,649.32,1.14653744]
[1740049451015,0.30737547,650.67,649.21,1.14653744]
[1740049453121,0.30737547,650.67,649.11,1.14653744]
[1740049456222,0.30737547,650.67,649.08,1.60535117]
[1740049456223,1.14928048,650.62,649.08,1.60535117]
[1740049456422,0.30740854,650.6,649.08,1.60535117]
[1740049460627,1.14928048,650.52,649.08,1.60535117]
[1740049461829,0.3074558,650.5,649.08,1.60535117]
[1740049470529,1.14928048,650.8,649.08,1.60535117]
[1740049472437,1.14928048,650.81,649.08,1.60535117]
[1740049474940,1.14928048,650.75,649.08,1.60535117]
[1740049478141,1.14928048,650.76,649.08,1.60535117]
[1740049480846,1.14928048,650.5,649.08,1.60535117]
[1740049485851,1.14928048,650.49,649.08,1.60535117]
[1740049488753,0.30746998,650.47,649.08,1.60535117]
[1740049494258,1.14928048,650.57,649.08,1.60535117]
[1740049496064,1.14928048,650.53,649.08,1.60535117]
[1740049498765,1.14928048,650.5,649.08,1.60535117]
[1740049501162,1.14928048,650.51,649.08,1.60535117]
[1740049503368,1.14928048,650.52,649.08,1.60535117]
[1740049505672,1.14928048,650.51,649.08,1.60535117]
[1740049506971,0.30746052,650.49,649.08,1.60535117]